bitfinex/quotes_ETHUSD_20250520
["timestamp","ask_amount","ask_price","bid_price","bid_amount"]
[1747740780943,0.1,2514.9,2514.8,10.95938027]
[1747740781225,0.1,2514.9,2514.8,11.33652832]
[1747740781596,0.1,2514.9,2514.8,15.31298768]
[1747740781797,0.1,2514.9,2514.8,23.31298768]
[1747740782690,0.1,2514.9,2514.8,19.33652832]
[1747740785032,4.07630124,2514.9,2514.8,16.62515032]
[1747740785331,4.07630124,2514.9,2514.8,22.87211632]
[1747740785499,4.07630124,2514.9,2514.8,25.16086432]
[1747740785836,0.1,2514.9,2514.8,25.16086432]
[1747740787594,4.07630124,2514.9,2514.8,22.87211632]
[1747740787795,4.07630124,2514.9,2514.8,25.66463432]
[1747740788324,0.1,2514.9,2514.8,25.66463432]
[1747740789637,0.1,2514.9,2514.8,11.39063432]
[1747740789809,4.07630124,2514.9,2514.8,22.87011632]
[1747740790309,4.07630124,2514.9,2514.8,14.87011632]
[1747740790505,4.07630124,2514.9,2514.8,22.87011632]
[1747740791620,4.07630124,2514.9,2514.8,16.91111632]
[1747740791927,4.07630124,2514.9,2514.8,8.91111632]
[1747740792236,4.07630124,2514.9,2514.8,8.69014805]
[1747740792413,3.97677563,2514.6,2514.5,31.52382048]
[1747740792636,3.97677563,2514.6,2514.5,17.56482048]
[1747740792838,3.97677563,2514.6,2514.5,26.09927745]
[1747740793358,0.1,2514.9,2514.6,8.0]
[1747740793577,0.1,2514.9,2514.8,8.0]
[1747740793727,0.1,2514.9,2514.8,15.63865397]
[1747740794257,0.1,2514.9,2514.8,11.67230697]
[1747740794753,4.07630124,2514.9,2514.8,11.67230697]
[1747740794934,4.07630124,2514.9,2514.8,25.72730697]
[1747740795852,4.07630124,2514.9,2514.8,22.87331307]
[1747740796268,4.07630124,2514.9,2514.8,29.09958907]
[1747740796478,0.1,2514.9,2514.8,29.09958907]
[1747740796768,0.1,2514.9,2514.8,33.07604843]
[1747740797059,0.1,2514.9,2514.8,29.09958907]
[1747740798269,4.07630124,2514.9,2514.8,0.59931307]
[1747740798471,4.07630124,2514.9,2514.8,22.87231307]
[1747740799137,4.07630124,2514.9,2514.8,16.91331307]
[1747740800534,4.07630124,2514.9,2514.8,8.59931307]
[1747740800744,4.07630124,2514.9,2514.8,8.91331307]
[1747740800745,4.96252909,2514.9,2514.8,8.91331307]
[1747740800952,4.07630124,2514.9,2514.8,8.91331307]
[1747740801345,4.07630124,2514.9,2514.8,8.91364361]
[1747740801837,0.1,2514.9,2514.8,30.16934161]
[1747740802038,0.1,2514.9,2514.8,27.54974361]
[1747740803253,0.1,2514.9,2514.8,31.52620297]
[1747740804338,0.1,2514.9,2514.8,32.28140297]
[1747740806546,4.07478713,2515.9,2514.9,11.97630124]
[1747740806746,3.9754208,2515.5,2515.1,0.7718]
[1747740806966,3.9754208,2515.5,2515.1,8.7718]
[1747740807159,3.9754208,2515.5,2515.2,0.22178751]
[1747740807361,3.9754208,2515.5,2515.4,8.0]
[1747740807557,3.97528637,2515.6,2515.4,8.0]
[1747740807774,3.97496266,2515.8,2515.5,23.122]
[1747740807990,3.97510391,2515.7,2515.5,23.34378751]
[1747740808198,0.1,2515.9,2515.6,8.8196]
[1747740808558,4.07474888,2515.9,2515.6,8.8196]
[1747740808797,0.1,2515.9,2515.7,0.22178751]
[1747740808954,0.1,2515.9,2515.8,16.29]
[1747740809596,0.1,2515.9,2515.8,16.51178751]
[1747740810082,0.1,2515.9,2515.8,16.88964361]
[1747740810454,0.1,2515.9,2515.8,17.28481056]
[1747740811089,0.1,2515.9,2515.8,9.28481056]
[1747740811689,0.1,2515.9,2515.8,0.99481056]
[1747740811892,0.1,2515.9,2515.8,15.24381056]
[1747740812096,4.07472077,2515.9,2515.8,15.24381056]
[1747740812603,0.1,2515.9,2515.8,15.24381056]
[1747740812790,0.1,2515.9,2515.8,36.22045832]
[1747740812992,0.1,2515.9,2515.8,55.99914432]
[1747740813380,0.1,2515.9,2515.8,63.99914432]
[1747740813767,0.005,2516.2,2515.8,49.75014432]
[1747740813973,3.97925699,2516.2,2515.9,14.248]
[1747740814375,0.005,2516.2,2515.9,18.22264885]
[1747740814575,0.005,2516.2,2516.0,0.22178751]
[1747740814999,0.005,2516.2,2516.1,16.362584]
[1747740815205,3.97924688,2516.2,2516.1,5.82263751]
[1747740816109,0.005,2516.2,2516.1,12.49529751]
[1747740817126,0.005,2516.2,2516.1,16.46970234]
[1747740817423,0.005,2516.2,2516.1,12.49529751]
[1747740817734,3.97924688,2516.2,2516.1,12.87162986]
[1747740817894,0.005,2516.2,2516.1,12.87162986]
[1747740818094,3.97924688,2516.2,2516.1,12.87162986]
[1747740818315,0.005,2516.2,2516.1,12.87162986]
[1747740818507,3.97924688,2516.2,2516.1,11.60465386]
[1747740818715,0.005,2516.2,2516.1,11.60465386]
[1747740819721,3.97924688,2516.2,2516.1,22.62133235]
[1747740820193,3.97924688,2516.2,2516.1,34.61037035]
[1747740820194,0.005,2516.2,2516.1,34.61037035]
[1747740820508,3.97924688,2516.2,2516.1,22.62133235]
[1747740821104,3.97924688,2516.2,2516.1,8.37633235]
[1747740821308,3.97924688,2516.2,2516.1,8.66433235]
[1747740821818,4.73974688,2516.2,2516.1,8.66433235]
[1747740822006,4.73974688,2516.2,2516.1,0.37633235]
[1747740822195,4.73974688,2516.2,2516.1,8.66433235]
[1747740822798,3.97924688,2516.2,2516.1,8.66433235]
[1747740823637,0.005,2516.2,2516.1,8.66433235]
[1747740823847,3.97924688,2516.2,2516.1,8.66433235]
[1747740824005,3.97924688,2516.2,2516.1,20.65453235]
[1747740824006,0.005,2516.2,2516.1,20.65453235]
[1747740824657,0.005,2516.2,2516.1,20.2782]
[1747740824807,0.005,2516.2,2516.1,25.01150483]
[1747740825005,0.005,2516.2,2516.1,25.56150483]
[1747740825312,0.005,2517.4,2517.3,11.97251022]
[1747740825514,0.005,2517.4,2517.3,44.65576649]
[1747740825832,3.97735242,2517.4,2517.3,33.443]
[1747740826014,3.97735242,2517.4,2517.3,17.156]
[1747740826216,3.97735242,2517.4,2517.3,25.443]
[1747740826217,5.59540883,2517.4,2517.3,25.443]
[1747740826428,0.005,2517.4,2517.3,33.83386382]
[1747740826738,0.005,2517.4,2517.3,36.95676382]
[1747740827037,0.005,2517.4,2517.3,40.92927404]
[1747740827242,0.005,2517.4,2517.3,37.17640852]
[1747740827558,0.005,2517.4,2517.3,41.14891874]
[1747740827750,3.97167663,2517.9,2517.4,11.97234542]
[1747740828247,3.97187864,2517.8,2517.6,8.0]
[1747740828448,3.97183971,2517.8,2517.6,8.0]
[1747740828670,0.005,2518.4,2517.6,8.0]
[1747740828671,3.97187909,2517.7,2517.6,8.0]
[1747740828869,3.9718013,2517.8,2517.6,12.688376]
[1747740829033,3.97158686,2517.9,2517.6,8.0]
[1747740829218,3.97219463,2517.5,2517.4,8.0]
[1747740829425,3.97150974,2518.0,2517.4,20.883405]
[1747740829625,3.97219463,2517.5,2517.4,16.286]
[1747740829821,3.97219463,2517.5,2517.4,19.613405]
[1747740830840,3.97219463,2517.5,2517.4,16.286]
[1747740831153,3.97213089,2517.6,2517.4,19.325]
[1747740831322,0.1045,2517.9,2517.4,16.286]
[1747740831525,3.97219463,2517.5,2517.4,16.286]
[1747740831727,3.97219463,2517.5,2517.4,19.213205]
[1747740831923,3.97235242,2517.4,2517.3,17.54686382]
[1747740832154,3.97235242,2517.4,2517.3,25.83186382]
[1747740833751,3.97235242,2517.4,2517.3,25.441]
[1747740835257,3.97137493,2518.1,2517.4,8.0]
[1747740835463,3.97197624,2517.7,2517.4,8.0]
[1747740835756,3.97219463,2517.5,2517.4,8.0]
[1747740835934,3.97219463,2517.5,2517.4,10.4359]
[1747740836527,3.97212623,2517.6,2517.4,10.4359]
[1747740836729,3.97212623,2517.6,2517.5,13.1721]
[1747740837065,3.97203686,2517.6,2517.5,8.0]
[1747740837371,3.97203686,2517.6,2517.5,10.176]
[1747740837827,3.97203686,2517.6,2517.5,8.0]
[1747740838024,3.97203686,2517.6,2517.5,16.284]
[1747740839437,3.97203686,2517.6,2517.5,8.0]
[1747740839758,3.97203686,2517.6,2517.5,8.263]
[1747740840259,3.97235242,2517.4,2517.3,17.54484038]
[1747740840477,4.07685242,2517.4,2517.3,25.419]
[1747740840825,4.62685242,2517.4,2517.3,17.156]
[1747740841259,3.97329942,2516.8,2516.7,0.4728721]
[1747740841462,4.76794628,2516.8,2516.7,8.263]
[1747740841784,3.97329942,2516.8,2516.7,8.263]
[1747740844213,3.97329942,2516.8,2516.5,17.147]
[1747740844391,3.97361519,2516.6,2516.5,25.411]
[1747740845467,4.07811519,2516.6,2516.5,25.412]
[1747740845868,3.97361519,2516.6,2516.5,25.412]
[1747740846505,3.97361519,2516.6,2516.5,17.147]
[1747740846884,4.07811519,2516.6,2516.5,25.412]
[1747740847280,4.07811519,2516.6,2516.5,17.147]
[1747740847485,4.07811519,2516.6,2516.5,25.412]
[1747740849798,4.8832751,2516.6,2516.5,25.412]
[1747740850602,4.8832751,2516.6,2516.5,17.147]
[1747740850804,4.8832751,2516.6,2516.5,25.412]
[1747740851508,3.97472077,2515.9,2515.8,8.40026826]
[1747740851806,3.97472077,2515.9,2515.8,8.266]
[1747740853087,0.1045,2516.6,2515.8,16.66535994]
[1747740853416,3.97419018,2516.3,2515.9,8.03974327]
[1747740853614,3.9743522,2516.2,2516.0,0.7767]
[1747740853814,3.97435058,2516.2,2516.0,0.7767]
[1747740853987,3.97440483,2516.1,2516.0,0.7767]
[1747740854474,3.97440483,2516.1,2516.0,3.733418]
[1747740854673,3.97440483,2516.1,2516.0,6.7282]
[1747740855075,4.07765778,2516.9,2516.0,6.7282]
[1747740855317,3.97440483,2516.1,2516.0,0.7767]
[1747740855513,3.97329942,2516.8,2516.0,20.6842]
[1747740855812,0.1045,2516.9,2516.0,14.7327]
[1747740855813,3.97410003,2516.3,2516.0,14.7327]
[1747740856110,3.97282587,2517.1,2516.1,0.8321]
[1747740856315,3.9741778,2516.3,2516.1,0.8321]
[1747740856812,3.9741778,2516.3,2516.2,19.197334]
[1747740857018,3.9741778,2516.3,2516.2,11.453]
[1747740857915,3.9741778,2516.3,2515.8,8.66535994]
[1747740857916,3.97472077,2515.9,2515.8,1.20935994]
[1747740858085,3.97472077,2515.9,2515.8,9.47635994]
[1747740858470,3.97472077,2515.9,2515.8,8.66635994]
[1747740859093,3.97472077,2515.9,2515.7,17.153]
[1747740859094,3.97487876,2515.8,2515.7,17.153]
[1747740859292,3.97487876,2515.8,2515.7,25.42]
[1747740859511,3.97487876,2515.8,2515.1,0.4728721]
[1747740859512,3.97491138,2515.8,2515.2,0.7698]
[1747740859812,3.97491138,2515.8,2515.7,17.154]
[1747740862498,3.97491138,2515.8,2515.7,25.421]
[1747740862699,3.97491138,2515.8,2515.7,17.154]
[1747740862933,3.97491138,2515.8,2515.7,25.421]
[1747740863134,3.97491138,2515.8,2515.7,17.154]
[1747740863337,3.97491138,2515.8,2515.7,25.421]
[1747740863818,4.07941138,2515.8,2515.7,25.421]
[1747740865102,4.07941138,2515.8,2515.7,17.154]
[1747740865426,4.8848278,2515.8,2515.7,17.154]
[1747740866011,4.8848278,2515.8,2515.7,25.422]
[1747740866615,4.8848278,2515.8,2515.7,17.154]
[1747740866836,4.8848278,2515.8,2515.7,25.422]
[1747740867031,4.8848278,2515.8,2515.7,17.154]
[1747740867212,4.8848278,2515.8,2515.7,25.422]
[1747740868948,4.8848278,2515.8,2515.7,17.154]
[1747740869173,4.8848278,2515.8,2515.7,8.252]
[1747740869174,5.4348278,2515.8,2515.7,8.252]
[1747740869311,4.8848278,2515.8,2515.7,8.252]
[1747740870438,3.97614314,2515.0,2514.9,17.159]
[1747740870610,3.97614314,2515.0,2514.9,25.411]
[1747740871812,3.97614314,2515.0,2514.9,17.159]
[1747740872013,3.97614314,2515.0,2514.9,25.411]
[1747740873049,3.97614314,2515.0,2514.9,25.79839178]
[1747740874047,0.1045,2515.6,2515.0,0.7572]
[1747740874248,3.97598505,2515.1,2515.0,0.7572]
[1747740876424,3.97496848,2515.8,2515.0,30.98777168]
[1747740876614,3.97511389,2515.7,2515.3,8.0]
[1747740876816,3.97535281,2515.5,2515.4,8.253]
[1747740877122,3.97527967,2515.6,2515.4,8.253]
[1747740877323,3.97512755,2515.7,2515.4,8.253]
[1747740877657,3.97524258,2515.6,2515.4,8.253]
[1747740877948,4.08032697,2515.2,2515.1,0.37763461]
[1747740878744,4.08032697,2515.2,2515.1,8.253]
[1747740879560,4.08032697,2515.2,2514.2,17.16]
[1747740879561,4.08143378,2514.5,2514.2,17.16]
[1747740879858,3.97740832,2514.2,2514.1,8.8258721]
[1747740880432,4.08190832,2514.2,2514.1,8.8258721]
[1747740880764,5.28553336,2514.2,2514.1,8.8258721]
[1747740881124,5.28553336,2514.2,2514.1,8.353]
[1747740882132,5.28553336,2514.2,2514.1,0.1]
[1747740882459,5.28553336,2514.2,2514.1,8.355]
[1747740882824,4.08190832,2514.2,2514.1,8.355]
[1747740885030,3.97740832,2514.2,2514.1,8.355]
[1747740886461,3.97740832,2514.2,2514.1,8.356]
[1747740886835,3.97740832,2514.2,2514.1,0.1]
[1747740887039,4.63190832,2514.2,2514.1,0.1]
[1747740887354,6.21577925,2514.2,2514.1,0.1]
[1747740890860,4.63269946,2513.7,2513.6,25.418]
[1747740891168,4.63269946,2513.7,2513.6,17.16]
[1747740891169,7.88515841,2513.7,2513.6,17.16]
[1747740892649,7.33515841,2513.7,2513.6,17.16]
[1747740894865,4.08269946,2513.7,2513.6,17.16]
[1747740895034,3.97819946,2513.7,2513.6,17.16]
[1747740901562,3.97819946,2513.7,2513.6,17.9758]
[1747740903981,3.97819946,2513.7,2513.6,26.2218]
[1747740904178,3.97661748,2514.7,2513.6,34.2218]
[1747740904338,0.79530768,2514.6,2513.7,0.03977723]
[1747740904660,3.97749627,2514.2,2513.8,0.7872]
[1747740904979,3.97630124,2514.9,2513.8,0.7872]
[1747740905339,3.97788297,2513.9,2513.8,0.7872]
[1747740905534,3.97788297,2513.9,2513.8,8.7872]
[1747740905739,3.97788297,2513.9,2513.8,17.0332]
[1747740906969,3.97788297,2513.9,2513.8,8.7872]
[1747740907146,3.97788297,2513.9,2513.8,0.7872]
[1747740907470,3.97819946,2513.7,2513.6,17.16]
[1747740907662,3.97819946,2513.7,2513.6,25.406]
[1747740908172,3.97819946,2513.7,2513.6,17.16]
[1747740908365,3.97819946,2513.7,2513.6,25.406]
[1747740909770,3.97819946,2513.7,2513.6,33.406]
[1747740910146,3.97819946,2513.7,2513.6,25.406]
[1747740910477,5.1716152,2513.7,2513.6,25.406]
[1747740911243,5.1716152,2513.7,2513.6,17.16]
[1747740911461,5.1716152,2513.7,2513.6,25.406]
[1747740912046,3.97819946,2513.7,2513.6,25.406]
[1747740913874,3.97819946,2513.7,2513.6,17.16]
[1747740914078,3.97819946,2513.7,2513.6,25.406]
[1747740914555,3.97819946,2513.7,2513.6,25.405]
[1747740915559,3.97819946,2513.7,2513.6,17.16]
[1747740915763,5.1820652,2513.7,2513.6,25.405]
[1747740916055,5.1820652,2513.7,2513.6,17.16]
[1747740916260,5.1820652,2513.7,2513.6,25.405]
[1747740916465,5.1820652,2513.7,2513.6,17.16]
[1747740916655,5.1820652,2513.7,2513.6,25.405]
[1747740917260,3.97819946,2513.7,2513.6,25.405]
[1747740917463,3.97819946,2513.7,2513.6,33.62718425]
[1747740918087,3.97819946,2513.7,2513.6,33.405]
[1747740919980,3.97819946,2513.7,2513.6,25.16]
[1747740920172,3.97819946,2513.7,2513.6,25.406]
[1747740920381,5.1716152,2513.7,2513.6,25.406]
[1747740921175,5.2761152,2513.7,2513.6,25.406]
[1747740921483,5.2761152,2513.7,2513.6,17.16]
[1747740921651,5.2761152,2513.7,2513.6,25.406]
[1747740922688,5.8261152,2513.7,2513.6,17.16]
[1747740922862,9.07857415,2513.7,2513.6,25.406]
[1747740923065,3.97899092,2513.2,2513.1,0.1]
[1747740923371,3.97899092,2513.2,2513.1,8.346]
[1747740923785,3.97899092,2513.2,2513.1,16.346]
[1747740925186,3.97899092,2513.2,2513.1,8.346]
[1747740925769,3.97899092,2513.2,2513.1,17.1086]
[1747740925979,3.97899092,2513.2,2513.1,17.33121784]
[1747740926179,3.97899092,2513.2,2513.1,0.32261784]
[1747740926381,3.97899092,2513.2,2513.1,8.56861784]
[1747740926688,3.97899092,2513.2,2513.1,17.1673]
[1747740927257,3.97899092,2513.2,2513.1,33.521]
[1747740927758,3.97899092,2513.2,2513.1,33.7435617]
[1747740931202,3.97899092,2513.2,2513.1,25.7435617]
[1747740931776,3.97899092,2513.2,2513.1,17.275]
[1747740931978,3.97899092,2513.2,2513.1,25.508]
[1747740932963,3.97899092,2513.2,2513.1,25.73045198]
[1747740933501,3.97899092,2513.2,2513.1,25.508]
[1747740935103,3.97899092,2513.2,2513.1,25.73044506]
[1747740935672,3.97899092,2513.2,2513.1,26.11007078]
[1747740940920,3.97180224,2513.2,2513.1,26.11007078]
[1747740941127,4.76686664,2513.2,2513.1,26.11007078]
[1747740941494,3.97180224,2513.2,2513.1,25.73044506]
[1747740941929,3.97180224,2513.2,2513.1,25.508]
[1747740948423,3.97868011,2513.4,2513.1,26.3139]
[1747740948623,3.97899092,2513.2,2513.1,26.3139]
[1747740948921,3.97849714,2513.6,2513.3,0.7723]
[1747740949626,3.9785213,2513.5,2513.4,0.22309544]
[1747740949835,3.9785213,2513.5,2513.4,0.60375191]
[1747740953336,3.97320784,2513.5,2513.4,0.60375191]
[1747740957735,3.9776752,2514.1,2513.4,12.66572791]
[1747740957908,7.22858384,2515.1,2513.7,0.7927]
[1747740957909,0.1045,2515.0,2513.7,0.7927]
[1747740958106,0.1045,2515.0,2513.5,8.0]
[1747740958107,1.52456249,2515.0,2514.0,0.7927]
[1747740958421,3.97669661,2514.7,2514.3,0.8128]
[1747740958597,3.97669661,2514.7,2514.4,8.233]
[1747740958998,3.97693378,2514.5,2514.4,8.233]
[1747740959398,3.97684238,2514.6,2514.5,0.38065647]
[1747740959593,3.97111165,2514.6,2514.5,0.38065647]
[1747740960114,3.97667503,2514.7,2514.6,0.7784]
[1747740960413,3.97667503,2514.7,2514.6,1.00039241]
[1747740961345,3.97667503,2514.7,2514.6,6.18399241]
[1747740961346,4.77199345,2514.7,2514.6,6.18399241]
[1747740961501,3.97667503,2514.7,2514.6,6.18399241]
[1747740961834,3.97667503,2514.7,2514.6,6.7131]
[1747740962233,4.77024561,2515.6,2514.6,6.7131]
[1747740962234,0.1045,2515.4,2514.6,6.7131]
[1747740962401,3.97631946,2514.9,2514.6,6.7131]
[1747740962600,3.97621693,2515.0,2514.6,6.7131]
[1747740963003,3.97630807,2514.9,2514.6,6.7131]
[1747740963404,0.79503701,2515.6,2514.8,0.7985]
[1747740963720,3.97534759,2515.6,2515.1,4.77445724]
[1747740963907,3.97537394,2515.5,2515.2,25.17]
[1747740964116,3.97524389,2515.6,2515.2,25.17]
[1747740964509,3.97539858,2515.5,2515.3,0.7572]
[1747740964821,3.97551085,2515.4,2515.3,0.7572]
[1747740965022,3.9756689,2515.3,2515.2,17.17]
[1747740965336,3.97497074,2515.8,2515.3,8.7572]
[1747740965502,0.1,2515.9,2515.3,8.7572]
[1747740965835,3.97515143,2515.7,2515.4,0.7729]
[1747740966345,3.97511916,2515.7,2515.4,0.7729]
[1747740966711,3.97488045,2515.8,2515.4,0.7729]
[1747740966915,0.1,2515.9,2515.6,8.0]
[1747740967141,0.1,2515.9,2515.8,8.7859]
[1747740967312,0.1,2515.9,2515.8,16.404348]
[1747740967703,0.1,2515.9,2515.8,14.310677]
[1747740968304,0.1,2515.9,2515.8,12.547198]
[1747740969240,0.1,2515.9,2515.8,26.716198]
[1747740969607,0.1,2515.9,2515.8,12.547198]
[1747740969803,0.1,2515.9,2515.8,27.10382752]
[1747740971015,4.07472077,2515.9,2515.8,1.17352952]
[1747740971215,3.97535281,2515.5,2515.3,8.0]
[1747740971420,3.97535281,2515.5,2515.4,22.168]
[1747740971635,3.97535281,2515.5,2515.4,22.167]
[1747740972145,3.97535281,2515.5,2515.3,0.7826]
[1747740972146,3.97551085,2515.4,2515.3,0.7826]
[1747740972346,3.97551085,2515.4,2515.3,22.9496]
[1747740972644,3.97551085,2515.4,2515.3,11.908783]
[1747740972845,3.97551085,2515.4,2515.3,14.9496]
[1747740973033,3.97551085,2515.4,2515.3,8.7826]
[1747740973228,3.9756689,2515.3,2515.2,17.17]
[1747740973435,3.9756689,2515.3,2515.2,31.337]
[1747740973640,3.9756689,2515.3,2515.2,39.337]
[1747740973945,3.9756689,2515.3,2515.2,39.74048006]
[1747740974311,3.97554302,2515.4,2515.2,39.337]
[1747740974506,3.9755925,2515.4,2515.2,39.337]
[1747740974709,3.9756689,2515.3,2515.2,39.337]
[1747740974909,3.97559052,2515.4,2515.2,57.312888]
[1747740975130,3.97544297,2515.5,2515.4,8.0]
[1747740975347,3.97544297,2515.5,2515.4,8.8102]
[1747740978349,3.9702586,2515.5,2515.4,8.8102]
[1747740978512,3.9702586,2515.5,2515.4,8.0]
[1747740979342,3.9702586,2515.5,2515.4,16.209]
[1747740979723,3.9702586,2515.5,2515.3,5.958]
[1747740979724,0.55,2514.7,2514.4,0.4728721]
[1747740979914,7.88389273,2514.5,2514.4,0.4728721]
[1747740980114,21.84018896,2514.5,2514.4,0.01821802]
[1747740980348,16.81975012,2514.3,2513.5,1.24515833]
[1747740980524,4.52835773,2513.6,2513.5,1.24515833]
[1747740980724,3.97835773,2513.6,2513.5,9.45315833]
[1747740981238,3.97835773,2513.6,2513.5,8.208]
[1747740982119,3.97899092,2513.2,2513.1,0.1]
[1747740982319,3.97899092,2513.2,2513.1,16.308]
[1747740982721,3.97891015,2513.3,2513.1,17.0625]
[1747740982919,4.0614003,2513.8,2513.1,17.0625]
[1747740982920,0.0833,2514.1,2513.2,8.0]
[1747740983116,0.0833,2514.1,2513.1,17.0625]
[1747740983117,0.0833,2514.1,2513.1,9.0625]
[1747740983324,4.06046064,2514.4,2513.4,8.0]
[1747740983552,3.97792324,2513.9,2513.3,3.97873742]
[1747740983732,3.97806698,2513.8,2513.4,8.0]
[1747740983933,3.97806698,2513.8,2513.5,8.883914]
[1747740984152,3.97806698,2513.8,2513.7,8.0]
[1747740984354,3.97806698,2513.8,2513.7,25.164]
[1747740984559,3.97806698,2513.8,2513.7,33.374]
[1747740986648,3.97806698,2513.8,2513.7,25.164]
[1747740986824,4.77366397,2513.8,2513.7,33.375]
[1747740987024,4.06136698,2513.8,2513.7,25.375]
[1747740988736,4.06136698,2513.8,2513.7,25.377]
[1747740988949,3.97806698,2513.8,2513.7,25.377]
[1747740991158,3.97806698,2513.8,2513.7,17.164]
[1747740991552,3.97806698,2513.8,2513.7,25.377]
[1747740991748,3.97806698,2513.8,2513.7,17.164]
[1747740991947,3.97806698,2513.8,2513.7,25.377]
[1747740995362,3.97795411,2513.9,2513.7,37.26575]
[1747740995553,3.97795411,2513.9,2513.7,25.377]
[1747740995939,3.97697803,2514.5,2513.7,25.377]
[1747740995940,3.97688396,2514.6,2513.7,25.76897134]
[1747740996152,3.97739899,2514.3,2513.7,29.74704376]
[1747740996360,3.97739899,2514.3,2513.7,33.53267018]
[1747740996554,3.97716384,2514.4,2513.8,3.9779577]
[1747740996728,3.97732663,2514.3,2513.9,0.7704]
[1747740997031,4.05949591,2515.0,2514.3,0.00466604]
[1747740997032,3.97703657,2514.5,2514.3,0.00466604]
[1747740997232,3.97670609,2514.7,2514.5,0.7704]
[1747740997444,3.97670609,2514.7,2514.6,5.962]
[1747740997644,3.97637083,2514.9,2514.6,5.962]
[1747740997847,3.9764678,2514.8,2514.7,17.171]
[1747740998835,3.9764678,2514.8,2514.7,25.37]
[1747741001678,3.9764678,2514.8,2514.7,33.37]
[1747741004679,4.77174788,2514.8,2514.7,25.369]
[1747741004877,4.85504788,2514.8,2514.7,17.171]
[1747741005173,4.85504788,2514.8,2514.7,25.369]
[1747741005886,4.85504788,2514.8,2514.7,17.171]
[1747741006050,4.85504788,2514.8,2514.7,25.369]
[1747741006648,4.85504788,2514.8,2514.7,17.171]
[1747741006849,4.85504788,2514.8,2514.7,25.369]
[1747741010456,4.77174788,2514.8,2514.7,25.369]
[1747741017292,3.9764678,2514.8,2514.7,25.369]
[1747741019524,3.9764678,2514.8,2514.7,33.369]
[1747741021898,3.9764678,2514.8,2514.7,25.171]
[1747741022225,3.96857667,2514.8,2514.7,39.5511249]
[1747741022905,3.96857667,2514.8,2514.7,39.329]
[1747741023902,3.96857667,2514.8,2514.7,31.329]
[1747741026122,3.96857667,2514.8,2514.7,39.55199234]
[1747741026321,3.97639635,2514.9,2514.8,8.0]
[1747741026486,3.97614569,2515.0,2514.9,0.8092]
[1747741026487,3.97614314,2515.0,2514.9,0.8092]
[1747741026826,3.97471901,2516.0,2515.1,0.8092]
[1747741026973,3.97544575,2515.5,2515.3,8.0]
[1747741027368,3.97544575,2515.5,2515.4,0.22299234]
[1747741027809,3.97530605,2515.6,2515.4,0.22299234]
[1747741027976,3.97530605,2515.6,2515.5,0.8229]
[1747741028177,3.96908,2515.6,2515.5,1.04589234]
[1747741030680,3.96908,2515.6,2515.5,8.40699234]
[1747741031275,3.96908,2515.6,2515.5,16.40699234]
[1747741031515,3.96908,2515.6,2515.5,17.22719234]
[1747741031682,3.96908,2515.6,2515.5,8.0]
[1747741032316,3.96908,2515.6,2515.5,22.143]
[1747741032513,3.96908,2515.6,2515.5,8.0]
[1747741032734,3.96908,2515.6,2515.5,22.143]
[1747741033172,3.96908,2515.6,2515.5,8.0]
[1747741033370,3.96908,2515.6,2515.5,16.184]
[1747741033674,3.96908,2515.6,2515.5,8.0]
[1747741033872,3.96908,2515.6,2515.5,8.184]
[1747741034517,3.96100975,2515.6,2515.5,8.184]
[1747741035225,3.9756689,2515.3,2515.2,0.8202]
[1747741035515,3.9756689,2515.3,2515.2,8.8202]
[1747741035737,3.9756689,2515.3,2515.2,22.9622]
[1747741035901,3.9756689,2515.3,2515.2,23.18419643]
[1747741037087,3.9756689,2515.3,2515.2,9.04219643]
[1747741037286,3.9756689,2515.3,2515.2,23.18419643]
[1747741038013,3.9756689,2515.3,2515.2,9.04219643]
[1747741038212,3.9756689,2515.3,2515.2,22.36399643]
[1747741038611,3.9756689,2515.3,2515.2,8.22199643]
[1747741038814,3.9756689,2515.3,2515.2,22.36399643]
[1747741038987,3.9756689,2515.3,2515.2,8.22199643]
[1747741039192,3.9756689,2515.3,2515.2,22.36399643]
[1747741041823,3.9756689,2515.3,2515.2,16.40499643]
[1747741042029,3.9756689,2515.3,2515.2,22.36299643]
[1747741042926,3.97506539,2515.7,2515.2,30.76738243]
[1747741043127,3.97560187,2515.4,2515.3,8.0]
[1747741043424,3.97530817,2515.6,2515.3,8.0]
[1747741043425,4.07478745,2515.9,2515.5,8.0]
[1747741043616,0.1,2515.9,2515.6,0.7873]
[1747741043811,0.1,2515.9,2515.8,8.0]
[1747741044014,0.1,2515.9,2515.8,21.785075]
[1747741044219,0.1,2515.9,2515.8,25.98195019]
[1747741044419,3.25370629,2517.8,2516.2,0.8266]
[1747741044420,3.97384111,2516.5,2516.2,0.8266]
[1747741044734,3.97384111,2516.5,2516.4,8.0]
[1747741045428,3.97384111,2516.5,2516.4,0.22199643]
[1747741045633,3.97384111,2516.5,2516.4,22.36299643]
[1747741045836,3.97384111,2516.5,2516.4,22.141]
[1747741046222,3.97348409,2516.7,2516.4,22.141]
[1747741046419,3.97345794,2516.7,2516.5,0.8183]
[1747741046599,3.97335868,2516.8,2516.5,0.8183]
[1747741046798,3.9734656,2516.7,2516.5,0.8183]
[1747741047128,3.96576959,2516.7,2516.6,17.16072]
[1747741047334,3.97304951,2517.0,2516.7,8.0]
[1747741047506,3.97298371,2517.0,2516.9,8.0]
[1747741047833,3.97298371,2517.0,2516.9,16.182]
[1747741049517,3.97298371,2517.0,2516.9,22.136]
[1747741049713,4.76756747,2517.0,2516.9,22.136]
[1747741050325,3.97314156,2516.9,2516.8,17.158]
[1747741050527,3.97314156,2516.9,2516.8,39.294]
[1747741052042,3.97314156,2516.9,2516.8,25.158]
[1747741052219,3.97314156,2516.9,2516.8,39.293]
[1747741053526,3.97314156,2516.9,2516.8,25.158]
[1747741053734,3.97314156,2516.9,2516.8,39.293]
[1747741054310,3.97314156,2516.9,2516.8,25.158]